fUSD/lending_fUSD_20250804
["ID","MTS","AMOUNT","RATE_DAILY","PERIOD"]
[377243929,1754306039290,-986.33,0.00041643,2]
[377243930,1754306039299,-658.58,0.00041643,2]
[377243931,1754306039309,-400.0,0.00041643,2]
[377243932,1754306039318,-400.0,0.00041643,2]
[377243933,1754306039327,-499.21,0.00041643,2]
[377243934,1754306039338,-1836.51,0.00041643,2]
[377243935,1754306039347,-1050.51,0.00041643,2]
[377243936,1754306039357,-682.1,0.00041643,2]
[377243937,1754306039366,-739.68,0.00041643,2]
[377243938,1754306039376,-1274.01,0.00041643,2]
[377243939,1754306039386,-524.64412755,0.00041643,2]
[377243940,1754306039395,-651.05,0.00041643,2]
[377243941,1754306039405,-1321.92,0.00041643,2]
[377243942,1754306039414,-1303.02,0.00041643,2]
[377243943,1754306039423,-400.0,0.00041643,2]
[377243944,1754306039433,-822.07,0.00041643,2]
[377243945,1754306039443,-999.83,0.00041643,2]
[377243946,1754306039453,-1091.32,0.00041643,2]
[377243947,1754306039462,-400.0,0.00041643,2]
[377243948,1754306039472,-562.8,0.00041643,2]
[377243949,1754306039481,-793.84,0.00041643,2]
[377243950,1754306039490,-1242.64,0.00041643,2]
[377243951,1754306039500,-1330.82,0.00041643,2]
[377243952,1754306039509,-558.09,0.00041643,2]
[377243953,1754306039518,-596.36,0.00041643,2]
[377243954,1754306039528,-1446.54,0.00041643,2]
[377243955,1754306039537,-1346.03,0.00041643,2]
[377243956,1754306039547,-879.7,0.00041643,2]
[377243957,1754306039556,-1481.75,0.00041643,2]
[377243958,1754306039566,-400.0,0.00041643,2]
[377243959,1754306039575,-1081.44,0.00041643,2]
[377243960,1754306039586,-2294.74,0.00041643,2]
[377243961,1754306039595,-2185.11,0.00041643,2]
[377243962,1754306039605,-528.1,0.00041643,2]
[377243963,1754306039614,-764.62,0.00041643,2]
[377243964,1754306039624,-768.31,0.00041643,2]
[377243965,1754306039633,-2154.11,0.00041643,2]
[377243966,1754306039642,-400.0,0.00041643,2]
[377243967,1754306039651,-1687.51,0.00041643,2]
[377243968,1754306039660,-1797.87,0.00041643,2]
[377243969,1754306039669,-884.68,0.00041643,2]
[377243970,1754306039678,-670.62,0.00041643,2]
[377243971,1754306039688,-466.07,0.00041643,2]
[377243972,1754306039697,-1427.05,0.00041643,2]
[377243973,1754306039707,-659.47,0.00041643,2]
[377243974,1754306039716,-430.38,0.00041643,2]
[377243975,1754306039725,-574.14423942,0.00041643,120]
[377243976,1754306039734,-400.0,0.00041643,2]
[377243977,1754306039744,-1547.49,0.00041643,2]
[377243978,1754306040082,-492.79865367,0.00041643,2]
[377243979,1754306040128,-948.07,0.00041643,2]
[377243980,1754306040138,-1424.69,0.00041643,2]
[377243981,1754306040147,-1692.45,0.00041643,2]
[377243982,1754306040157,-400.0,0.00041643,2]
[377243983,1754306040166,-1630.8,0.00041643,2]
[377243984,1754306040175,-840.48,0.00041643,2]
[377243985,1754306040185,-665.52,0.00041643,2]
[377243986,1754306040195,-870.74,0.00041643,2]
[377243987,1754306040204,-1702.7,0.00041643,2]
[377243988,1754306040213,-1068.48,0.00041643,2]
[377243989,1754306040223,-727.65,0.00041643,2]
[377243990,1754306040233,-469.7,0.00041643,2]
[377243991,1754306040243,-1107.78,0.00041643,2]
[377243992,1754306040252,-1880.84,0.00041643,2]
[377243993,1754306040262,-400.0,0.00041643,2]
[377243994,1754306040271,-813.9,0.00041643,2]
[377243995,1754306040281,-874.7,0.00041643,2]
[377243996,1754306040290,-205.86,0.00041643,2]
[377243997,1754306040300,-400.0,0.00041643,2]
[377243998,1754306040311,-426.16,0.00041643,2]
[377243999,1754306040320,-1110.47,0.00041643,2]
[377244000,1754306040331,-665.68,0.00041643,2]
[377244001,1754306040341,-400.0,0.00041643,2]
[377244002,1754306040351,-903.87,0.00041643,2]
[377244003,1754306040361,-470.81,0.00041643,2]
[377244004,1754306040371,-1358.5,0.00041643,2]
[377244005,1754306040381,-440.85,0.00041643,2]
[377244006,1754306040391,-1246.04,0.00041643,2]
[377244007,1754306040401,-1647.73,0.00041643,2]
[377244008,1754306040411,-994.67,0.00041643,2]
[377244009,1754306040421,-1443.42,0.00041643,2]
[377244010,1754306040431,-472.86,0.00041643,2]
[377244011,1754306040442,-924.22,0.00041643,2]
[377244012,1754306040452,-770.36,0.00041643,2]
[377244013,1754306040462,-1946.52,0.00041643,2]
[377244014,1754306040471,-979.61,0.00041643,2]
[377244015,1754306040483,-400.0,0.00041643,2]
[377244016,1754306040494,-400.0,0.00041643,2]
[377244017,1754306040504,-860.7,0.00041643,2]
[377244018,1754306040514,-645.5,0.00041643,2]
[377244019,1754306040524,-537.4,0.00041643,2]
[377244020,1754306040533,-2101.73,0.00041643,2]
[377244021,1754306040543,-537.04,0.00041643,2]
[377244022,1754306040553,-450.14,0.00041643,2]
[377244023,1754306040562,-798.27,0.00041643,2]
[377244024,1754306040572,-1175.36,0.00041643,2]
[377244025,1754306040583,-456.48,0.00041643,2]
[377244026,1754306040592,-1226.27,0.00041643,2]
[377244027,1754306040603,-939.52,0.00041643,2]
[377244028,1754306040613,-482.35,0.00041643,2]
[377244029,1754306040623,-1154.12,0.00041643,2]
[377244030,1754306040634,-400.0,0.00041643,2]
[377244031,1754306040644,-842.4,0.00041643,2]
[377244032,1754306040654,-400.0,0.00041643,2]
[377244033,1754306040664,-869.19,0.00041643,2]
[377244034,1754306040674,-700.37,0.00041643,2]
[377244035,1754306040683,-400.0,0.00041643,2]
[377244036,1754306040693,-1000.94,0.00041643,2]
[377244037,1754306040703,-1791.49,0.00041643,2]
[377244038,1754306040714,-1221.49,0.00041643,2]
[377244039,1754306040723,-400.0,0.00041643,2]
[377244040,1754306040733,-1747.77,0.00041643,2]
[377244041,1754306040742,-400.0,0.00041643,2]
[377244042,1754306040752,-1316.83,0.00041643,2]
[377244043,1754306040761,-991.24,0.00041643,2]
[377244044,1754306040771,-1344.32,0.00041643,2]
[377244045,1754306040780,-755.49,0.00041643,2]
[377244046,1754306040790,-778.88,0.00041643,2]
[377244047,1754306040800,-786.99,0.00041643,2]
[377244048,1754306040810,-1539.3,0.00041643,2]
[377244049,1754306040820,-444.22,0.00041643,2]
[377244050,1754306040830,-1258.35,0.00041643,2]
[377244051,1754306040839,-400.0,0.00041643,2]
[377244052,1754306040849,-400.0,0.00041643,2]
[377244053,1754306040859,-400.0,0.00041643,2]
[377244054,1754306040869,-1182.86,0.00041643,2]
[377244055,1754306040878,-1113.84,0.00041643,2]
[377244056,1754306040888,-1278.85,0.00041643,2]
[377244057,1754306040898,-4729.89,0.00041643,2]
[377244058,1754306040908,-454.82,0.00041643,2]
[377244059,1754306040917,-1031.98,0.00041643,2]
[377244060,1754306040927,-775.41,0.00041643,2]
[377244061,1754306040936,-1202.77,0.00041643,2]
[377244062,1754306040946,-492.55,0.00041643,2]
[377244063,1754306040957,-400.0,0.00041643,2]
[377244064,1754306040966,-400.0,0.00041643,2]
[377244065,1754306040976,-1481.93,0.00041643,2]
[377244066,1754306040986,-1675.62,0.00041643,2]
[377244067,1754306040996,-584.39,0.00041643,2]
[377244068,1754306041006,-679.61,0.00041643,2]
[377244069,1754306041016,-744.37,0.00041643,2]
[377244070,1754306041026,-1340.53,0.00041643,2]
[377244071,1754306041037,-2502.12,0.00041643,2]
[377244072,1754306041047,-1012.72,0.00041643,2]
[377244073,1754306041057,-2328.28,0.00041643,2]
[377244074,1754306041067,-815.04,0.00041643,2]
[377244075,1754306041076,-1484.28,0.00041643,2]
[377244076,1754306041086,-1969.15,0.00041643,2]
[377244077,1754306041095,-1435.3,0.00041643,2]
[377244078,1754306041105,-400.0,0.00041643,2]
[377244079,1754306041115,-173.84558619,0.00041643,2]
[377244080,1754306041124,-400.0,0.00041643,2]
[377244081,1754306041134,-913.42,0.00041643,2]
[377244082,1754306041144,-1703.95,0.00041643,2]
[377244083,1754306041153,-2504.25,0.00041643,2]
[377244084,1754306041163,-741.38,0.00041643,2]
[377244085,1754306041172,-1030.22,0.00041643,2]
[377244086,1754306041182,-400.0,0.00041643,2]
[377244087,1754306041191,-400.0,0.00041643,2]
[377244088,1754306041201,-400.0,0.00041643,2]
[377244089,1754306041210,-1237.75,0.00041643,2]
[377244090,1754306041220,-623.67,0.00041643,2]
[377244091,1754306041229,-400.0,0.00041643,2]
[377244092,1754306041239,-602.81,0.00041643,2]
[377244093,1754306041248,-400.0,0.00041643,2]
[377244094,1754306041257,-400.0,0.00041643,2]
[377244095,1754306041266,-992.32,0.00041643,2]
[377244096,1754306041276,-400.0,0.00041643,2]
[377244097,1754306041285,-537.5,0.00041643,2]
[377244098,1754306041295,-956.99,0.00041643,2]
[377244099,1754306041304,-630.59,0.00041643,2]
[377244100,1754306041314,-1585.73,0.00041643,2]
[377244101,1754306041324,-1301.61,0.00041643,2]
[377244102,1754306041333,-1889.25,0.00041643,2]
[377244103,1754306041342,-641.71,0.00041643,2]
[377244104,1754306041352,-400.0,0.00041643,2]
[377244105,1754306041363,-924.72,0.00041643,2]
[377244106,1754306041373,-1059.24,0.00041643,2]
[377244107,1754306041383,-2092.15,0.00041643,2]
[377244108,1754306041393,-533.38,0.00041643,2]
[377244109,1754306041403,-890.3,0.00041643,2]
[377244110,1754306041412,-501.38,0.00041643,2]
[377244111,1754306041422,-1366.75,0.00041643,2]
[377244112,1754306041433,-690.08,0.00041643,2]
[377244113,1754306041442,-1441.16,0.00041643,2]
[377244114,1754306041452,-314.84665036,0.00041643,2]
[377244115,1754306041461,-990.2,0.00041643,2]
[377244116,1754306041471,-803.42,0.00041643,2]
[377244117,1754306041481,-645.51,0.00041643,2]
[377244118,1754306041491,-400.0,0.00041643,2]
[377244119,1754306041500,-545.68,0.00041643,2]
[377244120,1754306041510,-400.0,0.00041643,2]
[377244121,1754306041521,-726.21,0.00041643,2]
[377244122,1754306041530,-400.0,0.00041643,2]
[377244123,1754306041540,-506.95,0.00041643,2]
[377244124,1754306041550,-788.62,0.00041643,2]
[377244125,1754306041559,-931.05,0.00041643,2]
[377244126,1754306041568,-400.0,0.00041643,2]
[377244127,1754306041578,-2071.07,0.00041643,2]
[377244128,1754306041587,-552.88,0.00041643,2]
[377244129,1754306041597,-1077.59,0.00041643,2]
[377244130,1754306041606,-400.0,0.00041643,2]
[377244131,1754306041616,-400.0,0.00041643,2]
[377244132,1754306041625,-551.2,0.00041643,2]
[377244133,1754306041635,-1479.72,0.00041643,2]
[377244134,1754306041645,-400.0,0.00041643,2]
[377244135,1754306041654,-418.78,0.00041643,120]
[377244136,1754306041663,-400.0,0.00041643,2]
[377244137,1754306041673,-628.0,0.00041643,2]
[377244138,1754306041683,-400.0,0.00041643,2]
[377244139,1754306041692,-223.67988381,0.00041643,2]
[377244140,1754306041702,-1186.41,0.00041643,2]
[377244141,1754306041711,-1047.92,0.00041643,2]
[377244142,1754306041721,-882.59,0.00041643,2]
[377244143,1754306041731,-845.07,0.00041643,2]
[377244144,1754306041741,-1368.23,0.00041643,2]
[377244145,1754306041750,-627.42,0.00041643,2]
[377244146,1754306041760,-1654.02,0.00041643,2]
[377244147,1754306041770,-1022.16,0.00041643,2]
[377244148,1754306041780,-928.07,0.00041643,2]
[377244149,1754306041789,-463.65,0.00041643,2]
[377244150,1754306041799,-987.02,0.00041643,2]
[377244151,1754306041808,-1127.8,0.00041643,2]
[377244152,1754306041818,-1457.97,0.00041643,2]
[377244153,1754306041829,-1263.43,0.00041643,2]
[377244154,1754306041838,-732.77,0.00041643,2]
[377244155,1754306041847,-1212.72,0.00041643,2]
[377244156,1754306041857,-1364.75,0.00041643,2]
[377244157,1754306041866,-3088.08,0.00041643,2]
[377244158,1754306041875,-1963.71,0.00041643,2]
[377244159,1754306041885,-400.0,0.00041643,2]
[377244160,1754306041894,-669.31,0.00041643,2]
[377244161,1754306041903,-1338.78,0.00041643,2]
[377244162,1754306041912,-470.83,0.00041643,2]
[377244163,1754306041921,-1725.86,0.00041643,2]
[377244164,1754306041931,-1157.0,0.00041643,2]
[377244165,1754306041940,-400.0,0.00041643,2]
[377244166,1754306041949,-1049.12,0.00041643,2]
[377244167,1754306041962,-888.73,0.00041643,2]
[377244168,1754306041971,-719.82,0.00041643,2]
[377244169,1754306041981,-574.83,0.00041643,2]
[377244170,1754306041991,-1718.88,0.00041643,2]
[377244171,1754306042001,-1630.61,0.00041643,2]
[377244172,1754306042011,-629.17,0.00041643,2]
[377244173,1754306042022,-400.0,0.00041643,2]
[377244174,1754306042035,-1303.32,0.00041643,2]
[377244175,1754306042047,-666.66,0.00041643,2]
[377244176,1754306042062,-603.36,0.00041643,2]
[377244177,1754306042071,-495.64,0.00041643,2]
[377244178,1754306042083,-1485.45,0.00041643,2]
[377244179,1754306042092,-718.11,0.00041643,2]
[377244180,1754306042102,-400.0,0.00041643,2]
[377244181,1754306042111,-1307.14,0.00041643,2]
[377244182,1754306042123,-1527.44,0.00041643,2]
[377244183,1754306042133,-1110.24,0.00041643,2]
[377244184,1754306042143,-869.15,0.00041643,2]
[377244185,1754306042154,-536.27,0.00041643,2]
[377244186,1754306042164,-1091.81,0.00041643,2]
[377244187,1754306042173,-1130.18,0.00041643,2]
[377244188,1754306042182,-249.62312793,0.00041643,2]
[377244189,1754306042191,-1117.05,0.00041643,2]
[377244190,1754306042201,-905.65,0.00041643,2]
[377244191,1754306042210,-1075.79,0.00041643,2]
[377244192,1754306042220,-471.33,0.00041643,2]
[377244193,1754306042229,-966.32,0.00041643,2]
[377244194,1754306042239,-400.0,0.00041643,2]
[377244195,1754306042248,-798.59,0.00041643,2]
[377244196,1754306042257,-400.0,0.00041643,2]
[377244197,1754306042267,-1284.95,0.00041643,2]
[377244198,1754306042276,-1354.83,0.00041643,2]
[377244199,1754306042285,-1268.26,0.00041643,2]
[377244200,1754306042295,-912.08,0.00041643,2]
[377244201,1754306042304,-631.36,0.00041643,2]
[377244202,1754306042313,-862.24,0.00041643,2]
[377244203,1754306042323,-1400.07,0.00041643,2]
[377244204,1754306042332,-699.87,0.00041643,2]
[377244205,1754306042342,-1343.86,0.00041643,2]
[377244206,1754306042352,-743.43,0.00041643,2]
[377244207,1754306042361,-294.57628187,0.00041643,2]
[377244208,1754306042370,-616.73,0.00041643,2]
[377244209,1754306042379,-927.18,0.00041643,2]
[377244210,1754306042389,-418.89,0.00041643,2]
[377244211,1754306042398,-875.84,0.00041643,2]
[377244212,1754306042408,-1329.19,0.00041643,2]
[377244213,1754306042417,-434.19,0.00041643,2]
[377244214,1754306042426,-1658.94,0.00041643,2]
[377244215,1754306042435,-1333.24,0.00041643,2]
[377244216,1754306042445,-400.0,0.00041643,2]
[377244217,1754306042454,-967.63,0.00041643,2]
[377244218,1754306042464,-414.76,0.00041643,2]
[377244219,1754306042473,-400.0,0.00041643,2]
[377244220,1754306042483,-400.0,0.00041643,2]
[377244221,1754306042492,-1263.4,0.00041643,2]
[377244222,1754306042501,-944.68,0.00041643,2]
[377244223,1754306042515,-1252.38,0.00041643,2]
[377244224,1754306042525,-400.0,0.00041643,2]
[377244225,1754306042535,-412.29,0.00041643,2]
[377244226,1754306042544,-605.41,0.00041643,2]
[377244227,1754306042554,-1748.2,0.00041643,2]
[377244228,1754306042563,-1117.53,0.00041643,2]
[377244229,1754306042572,-2048.38,0.00041643,2]
[377244230,1754306042581,-3038.05,0.00041643,2]
[377244231,1754306042591,-886.22,0.00041643,2]
[377244232,1754306042601,-611.63,0.00041643,2]
[377244233,1754306042610,-400.0,0.00041643,2]
[377244234,1754306042619,-1068.97,0.00041643,2]
[377244235,1754306042629,-673.68,0.00041643,2]
[377244236,1754306042638,-4263.58,0.00041643,2]
[377244237,1754306042648,-1348.61,0.00041643,2]
[377244238,1754306042657,-590.51,0.00041643,2]
[377244239,1754306042667,-400.0,0.00041643,2]
[377244240,1754306042677,-841.94,0.00041643,2]
[377244241,1754306042686,-1374.4,0.00041643,2]
[377244242,1754306042695,-661.31,0.00041643,2]
[377244243,1754306042705,-888.64,0.00041643,2]
[377244244,1754306042714,-1281.23,0.00041643,2]
[377244245,1754306042724,-1778.85,0.00041643,2]
[377244246,1754306042734,-1558.5,0.00041643,2]
[377244247,1754306042743,-838.38,0.00041643,2]
[377244248,1754306042754,-1793.86,0.00041643,2]
[377244249,1754306042764,-632.03,0.00041643,2]
[377244250,1754306042775,-719.42,0.00041643,2]
[377244251,1754306042784,-2346.34,0.00041643,2]
[377244252,1754306042795,-2208.08,0.00041643,2]
[377244253,1754306042804,-400.0,0.00041643,2]
[377244254,1754306042813,-2121.06,0.00041643,2]
[377244255,1754306042823,-6220.24,0.00041643,2]
[377244256,1754306042833,-2028.4,0.00041643,2]
[377244257,1754306042842,-959.16,0.00041643,2]
[377244258,1754306042851,-1009.99,0.00041643,2]
[377244259,1754306042861,-400.0,0.00041643,2]
[377244260,1754306042871,-1169.71,0.00041643,2]
[377244261,1754306042881,-693.34,0.00041643,2]
[377244262,1754306042892,-1366.07,0.00041643,2]
[377244263,1754306042901,-1689.54,0.00041643,2]
[377244264,1754306042911,-1110.66,0.00041643,2]
[377244265,1754306042921,-1421.12,0.00041643,2]
[377244266,1754306042932,-487.34,0.00041643,2]
[377244267,1754306042942,-401.93,0.00041643,2]
[377244268,1754306042951,-2122.58,0.00041643,2]
[377244269,1754306042964,-548.21,0.00041643,2]
[377244270,1754306042973,-2428.92,0.00041643,2]
[377244271,1754306042983,-1096.89,0.00041643,2]
[377244272,1754306042994,-558.13,0.00041643,2]
[377244273,1754306043004,-400.0,0.00041643,2]
[377244274,1754306043014,-1162.47,0.00041643,2]
[377244275,1754306043023,-683.16,0.00041643,2]
[377244276,1754306043035,-4527.79,0.00041643,2]
[377244277,1754306043045,-688.63,0.00041643,2]
[377244278,1754306043054,-787.49,0.00041643,2]
[377244279,1754306043064,-400.0,0.00041643,2]
[377244280,1754306043074,-642.79,0.00041643,2]
[377244281,1754306043084,-484.68101512,0.00041643,2]
[377244282,1754306043094,-400.0,0.00041643,2]
[377244283,1754306043104,-5396.72,0.00041643,2]
[377244284,1754306043113,-1940.04,0.00041643,2]
[377244285,1754306043123,-400.0,0.00041643,2]
[377244286,1754306043133,-400.0,0.00041643,2]
[377244287,1754306043143,-4563.07,0.00041643,2]
[377244288,1754306043152,-1666.37,0.00041643,2]
[377244289,1754306043162,-400.0,0.00041643,2]
[377244290,1754306043172,-1973.82,0.00041643,2]
[377244291,1754306043181,-962.89,0.00041643,2]
[377244292,1754306043191,-524.97,0.00041643,2]
[377244293,1754306043200,-1536.5,0.00041643,2]
[377244294,1754306043209,-1125.71,0.00041643,2]
[377244295,1754306043219,-778.62,0.00041643,2]
[377244296,1754306043229,-8227.11,0.00041643,2]
[377244297,1754306043238,-802.26,0.00041643,2]
[377244298,1754306043248,-400.0,0.00041643,2]
[377244299,1754306043258,-770.91,0.00041643,2]
[377244300,1754306043267,-11138.27,0.00041643,2]
[377244301,1754306043276,-2940.43,0.00041643,2]
[377244302,1754306043286,-458.47,0.00041643,2]
[377244303,1754306043296,-1728.23,0.00041643,2]
[377244304,1754306043305,-2047.73,0.00041643,2]
[377244305,1754306043314,-2159.66,0.00041643,2]
[377244306,1754306043324,-1756.78,0.00041643,2]
[377244307,1754306043334,-445.29,0.00041643,2]
[377244308,1754306043343,-2736.99,0.00041643,2]
[377244309,1754306043353,-1618.06,0.00041643,2]
[377244310,1754306043362,-581.83,0.00041643,2]
[377244311,1754306043372,-893.35,0.00041643,2]
[377244312,1754306043382,-1865.31,0.00041643,2]
[377244313,1754306043392,-1394.73,0.00041643,2]
[377244314,1754306043402,-400.0,0.00041643,2]
[377244315,1754306043411,-1087.63,0.00041643,2]
[377244316,1754306043422,-3648.6,0.00041643,2]
[377244317,1754306043432,-997.42,0.00041643,2]
[377244318,1754306043443,-1873.61,0.00041643,2]
[377244319,1754306043460,-1200.71,0.00041643,2]
[377244320,1754306043471,-400.0,0.00041643,2]
[377244321,1754306043481,-9079.6,0.00041643,2]
[377244322,1754306043490,-520.48,0.00041643,2]
[377244323,1754306043500,-510.65,0.00041643,2]
[377244324,1754306043510,-1629.46,0.00041643,2]
[377244325,1754306043520,-531.96,0.00041643,2]
[377244326,1754306043529,-875.07,0.00041643,2]
[377244327,1754306043539,-3451.49,0.00041643,2]
[377244328,1754306043549,-688.87,0.00041643,2]
[377244329,1754306043559,-6021.56,0.00041643,2]
[377244330,1754306043569,-400.0,0.00041643,2]
[377244331,1754306043579,-1001.01,0.00041643,2]
[377244332,1754306043588,-1875.95,0.00041643,2]
[377244333,1754306043598,-659.18,0.00041643,2]
[377244334,1754306043609,-618.84,0.00041643,2]
[377244335,1754306043619,-491.69,0.00041643,2]
[377244336,1754306043629,-905.16,0.00041643,2]
[377244337,1754306043639,-476.99,0.00041643,2]
[377244338,1754306043649,-1286.32,0.00041643,2]
[377244339,1754306043659,-713.76,0.00041643,2]
[377244340,1754306043669,-580.3,0.00041643,2]
[377244341,1754306043679,-727.44,0.00041643,2]
[377244342,1754306043689,-1539.83,0.00041643,2]
[377244343,1754306043699,-1377.16,0.00041643,2]
[377244344,1754306043709,-400.0,0.00041643,2]
[377244345,1754306043718,-406.58,0.00041643,2]
[377244346,1754306043728,-582.52,0.00041643,2]
[377244347,1754306043737,-2160.03,0.00041643,2]
[377244348,1754306043746,-1891.71,0.00041643,2]
[377244349,1754306043756,-1732.93,0.00041643,2]
[377244350,1754306043766,-1032.57,0.00041643,2]
[377244351,1754306043776,-6316.72,0.00041643,2]
[377244352,1754306043785,-1238.95,0.00041643,2]
[377244353,1754306043795,-3107.23,0.00041643,2]
[377244354,1754306043805,-1515.13,0.00041643,2]
[377244355,1754306043814,-1066.08,0.00041643,2]
[377244356,1754306043824,-2052.93,0.00041643,2]
[377244357,1754306043834,-533.88,0.00041643,2]
[377244358,1754306043845,-1689.09,0.00041643,2]
[377244359,1754306043855,-1698.39,0.00041643,2]
[377244360,1754306043865,-1868.67,0.00041643,2]
[377244361,1754306043875,-942.3,0.00041643,2]
[377244362,1754306043885,-1670.39,0.00041643,2]
[377244363,1754306043894,-400.0,0.00041643,2]
[377244364,1754306043904,-1178.78,0.00041643,2]
[377244365,1754306043913,-1545.77,0.00041643,2]
[377244366,1754306043924,-1644.64,0.00041643,2]
[377244367,1754306043933,-1113.34,0.00041643,2]
[377244368,1754306043942,-1572.92,0.00041643,2]
[377244369,1754306043954,-1766.11,0.00041643,2]
[377244370,1754306043964,-8388.36,0.00041643,2]
[377244371,1754306043974,-1722.33,0.00041643,2]
[377244372,1754306043983,-819.3,0.00041643,2]
[377244373,1754306043993,-1306.14,0.00041643,2]
[377244374,1754306044003,-1596.57,0.00041643,2]
[377244375,1754306044012,-400.0,0.00041643,2]
[377244376,1754306044022,-1501.24,0.00041643,2]
[377244377,1754306044032,-1264.88,0.00041643,2]
[377244378,1754306044041,-431.73,0.00041643,2]
[377244379,1754306044051,-1010.21,0.00041643,2]
[377244380,1754306044060,-1156.04,0.00041643,2]
[377244381,1754306044069,-873.38,0.00041643,2]
[377244382,1754306044079,-4195.1,0.00041643,2]
[377244383,1754306044088,-1925.04,0.00041643,2]
[377244384,1754306044098,-714.27,0.00041643,2]
[377244385,1754306044108,-400.0,0.00041643,2]
[377244386,1754306044118,-1469.78,0.00041643,2]
[377244387,1754306044128,-817.57,0.00041643,2]
[377244388,1754306044138,-1923.74,0.00041643,2]
[377244389,1754306044147,-694.89,0.00041643,2]
[377244390,1754306044157,-400.0,0.00041643,2]
[377244391,1754306044168,-670.37,0.00041643,2]
[377244392,1754306044178,-1448.9,0.00041643,2]
[377244393,1754306044187,-1746.78,0.00041643,2]
[377244394,1754306044198,-1747.36,0.00041643,2]
[377244395,1754306044208,-5776.09,0.00041643,2]
[377244396,1754306044219,-1337.16,0.00041643,2]
[377244397,1754306044229,-400.0,0.00041643,2]
[377244398,1754306044239,-1374.38,0.00041643,2]
[377244399,1754306044249,-1183.71,0.00041643,2]
[377244400,1754306044259,-400.0,0.00041643,2]
[377244401,1754306044268,-6346.76,0.00041643,2]
[377244402,1754306044278,-400.0,0.00041643,2]
[377244403,1754306044287,-400.0,0.00041643,2]
[377244404,1754306044301,-1793.17,0.00041643,2]
[377244405,1754306044311,-455.16,0.00041643,2]
[377244406,1754306044321,-1208.54,0.00041643,2]
[377244407,1754306044330,-1230.85,0.00041643,2]
[377244408,1754306044341,-1363.88,0.00041643,2]
[377244409,1754306044350,-1603.12,0.00041643,2]
[377244410,1754306044359,-941.56,0.00041643,2]
[377244411,1754306044369,-2444.62,0.00041643,2]
[377244412,1754306044378,-968.13,0.00041643,2]
[377244413,1754306044388,-521.68,0.00041643,2]
[377244414,1754306044397,-642.68,0.00041643,2]
[377244415,1754306044406,-307.16605982,0.00041643,2]
[377244416,1754306044416,-1266.17,0.00041643,2]
[377244417,1754306044426,-532.52,0.00041643,2]
[377244418,1754306044437,-403.29,0.00041643,2]
[377244419,1754306044455,-1754.23,0.00041643,2]
[377244420,1754306044471,-2358.63,0.00041643,2]
[377244421,1754306044485,-2154.85,0.00041643,2]
[377244422,1754306044500,-400.0,0.00041643,2]
[377244423,1754306044517,-403.11,0.00041643,2]
[377244424,1754306044533,-1873.9,0.00041643,2]
[377244425,1754306044548,-400.0,0.00041643,2]
[377244426,1754306044564,-1735.99,0.00041643,2]
[377244427,1754306044580,-1686.63,0.00041643,2]
[377244428,1754306044601,-1673.67,0.00041643,2]